{"text_format":"1","workbook":"xlsx","n_sheets":8,"sheets":["Raw data","Summary Statistics","Bootstrapping","Parametric","CE plane","ICER Histogram","CEA curve","Net Ben Histogram"],"not_rendered":{"charts":8,"images":0,"macros":1,"external_links":0,"defined_names":3,"comments":0,"pivot_tables":0},"unopened":[{"sheet":"CE plane","index":4,"reason":"not_a_worksheet"},{"sheet":"ICER Histogram","index":5,"reason":"not_a_worksheet"},{"sheet":"CEA curve","index":6,"reason":"not_a_worksheet"},{"sheet":"Net Ben Histogram","index":7,"reason":"not_a_worksheet"}],"bounds":{"document_bytes":16777216,"sheet_cells":100000,"rows_first":2000,"rows_last":500,"rows_between":2000,"halvings":0,"cell_chars":16384,"cell_head_chars":4096},"cells_cut":0,"cells_raw":0,"read":"whole","date_system":"1900"}

{"sheet":"Raw data","index":0,"n_rows":104,"n_cols":8,"rows_kept":104,"cut":false,"hidden":false,"merged":[]}
["Raw Data"]
[]
[null,"Control Group",null,null,null,"Treatment Group"]
[null,"Patient","Effect","Cost",null,"Patient","Effect","Cost"]
[null,1,5.5230222229378008,3641.7574384520349,null,101,8.4486795295195058,7674.2425512401314]
[null,2,5.1919646630865142,12121.525911710989,null,102,5.6135498806623119,7706.612045518862]
[null,3,11.051414633832911,5786.2548009459551,null,103,3.1263016140702451,6530.9439895774494]
[null,4,9.5786366212729313,7900.4873298371031,null,104,9.1368287826519747,18328.785524133895]
[null,5,7.5310069563682553,13883.478772580404,null,105,4.9495945917755577,5949.4747580031508]
[null,6,6.9245256956464782,13344.619043650619,null,106,4.5853215109917471,6029.6450313752912]
[null,7,6.9295998689004641,5326.9273592200743,null,107,1.0783183246014647,6136.0462522919515]
[null,8,3.1157328900940082,4004.521686170754,null,108,6.3549480621204992,6291.6709165529246]
[null,9,11.711420822686083,6014.4187771436564,null,109,9.6472873740787062,13825.65313678408]
[null,10,6.1180992616600012,9322.0321734028512,null,110,7.6391003260933426,7567.6423426894135]
[null,11,4.8890164803129901,3230.1907857596816,null,111,5.7500603637393732,7055.212383303272]
[null,12,3.7696169751314508,2868.1762034873132,null,112,3.8196163491952349,6913.0308390458849]
[null,13,8.5325856270218168,5451.7889418183131,null,113,13.197781054869752,12882.237819428197]
[null,14,6.3183526617630488,7685.2876759782257,null,114,2.6726811534058359,13839.593254837855]
[null,15,3.9034690704966,3228.510418855466,null,115,8.2341033909470696,15783.230279664196]
[null,16,4.1997952983587261,4520.6827977691773,null,116,3.5647898776376379,5259.1371601328665]
[null,17,2.3804591266808512,1547.3076696579021,null,117,9.9693945714417964,9842.2889756341883]
[null,18,5.1040899232915473,2879.7711988053347,null,118,9.0286165711156023,15933.189685440435]
[null,19,4.5487748338420486,3546.4025970283678,null,119,13.630870919775116,17970.13463327743]
[null,20,9.5915602530958797,5646.9808024567637,null,120,10.776690243020884,20972.192961268287]
[null,21,0.28730140064589299,5738.2983934390068,null,121,4.9242675132508475,5379.4470391750665]
[null,22,2.9395774234965528,1482.4737602283785,null,122,1.5514953192979193,9871.2068825291681]
[null,23,4.3028129417414434,3009.2105111134483,null,123,4.8447275495681374,12813.828462325819]
[null,24,11.653288106542895,7932.2800402011826,null,124,1.2932610804296996,2254.8598376145496]
[null,25,1.9036650870239149,16030.089965584813,null,125,4.7620607571642326,6267.3571986046873]
[null,26,5.1525255897525506,3217.5851790241977,null,126,11.214378348220773,16389.357648229594]
[null,27,5.8440592010313779,3219.0176474616469,null,127,5.8625038404747096,9938.7644492985546]
[null,28,11.321050050792836,6238.8722271655597,null,128,8.018817186743636,13424.814908151546]
[null,29,9.6700977608401093,5240.3827577613456,null,129,-0.54777190984754087,7050.9204931595659]
[null,30,6.5010231063650092,3169.3103583302163,null,130,7.0911589424121502,6601.4757734658779]
[null,31,3.0286900313727401,6941.8348275230155,null,131,5.7788967061002046,9044.4459153021289]
[null,32,2.0781199271286472,1198.1531341399686,null,132,8.9838356864513536,14670.617442142542]
[null,33,9.7925363145080251,5209.20742636657,null,133,14.262082433239351,13960.901743330987]
[null,34,6.4271455137348639,6911.3667119870233,null,134,8.1768027408037547,10218.555084335361]
[null,35,3.8029388332634952,2782.0325658680358,null,135,9.5463149403149625,11034.97705802153]
[null,36,10.12371956978861,7571.0441966944963,null,136,6.4306106184020146,6628.6815629440734]
[null,37,7.166424794919191,5545.6060821818564,null,137,0.82936118236748424,3030.4287878664127]
[null,38,8.5633725581160238,3994.5465030110922,null,138,13.831868439621624,13091.205779087431]
[null,39,0.52728268787334431,11384.432571411606,null,139,12.061027786969371,36909.61325616765]
[null,40,3.0389350020857511,2514.2031509741892,null,140,4.5103596199229772,6376.9405190324496]
[null,41,7.9411881104487101,14326.88676069452,null,141,10.279561770903793,10257.108135735336]
[null,42,12.236518163684371,7825.657381783948,null,142,8.681236067051076,8968.7355160541174]
[null,43,3.5947629533543473,2863.2315321034957,null,143,13.520069774223522,13868.58686526778]
[null,44,1.6685108258472681,602.25129584288857,null,144,7.8859323315056349,12466.149879986684]
[null,45,5.2658437278400312,5607.4193936362153,null,145,7.2615433229172321,9557.0197498230445]
[null,46,0.41333468425225467,2915.8103564257872,null,146,6.0660305798288423,5980.894830754145]
[null,47,8.078396591818171,4134.2422690551421,null,147,12.136946526092006,12653.078039947584]
[null,48,9.4943707713147845,5666.3726412140259,null,148,0.83913410236726871,2774.8563919978606]
[null,49,0.6142652573618721,347.93008219028383,null,149,12.143761707957653,11829.126795409478]
[null,50,7.1365385198688571,5198.5565806135983,null,150,6.0049740413370554,9379.3806111566773]
[null,51,9.3299434462895405,12358.138658835098,null,151,8.6927177360316286,12546.619338955159]
[null,52,7.2130757536574528,3873.6188236322341,null,152,6.6291311419083945,7874.3463358184927]
[null,53,1.4811863849776941,1227.6615437135929,null,153,9.5900746570098363,20578.188752411486]
[null,54,5.4543160134070146,4426.2361922328437,null,154,14.352477681135197,14355.009331620193]
[null,55,6.0594326784440202,8149.1107594597288,null,155,9.0302136480258692,10450.964895636245]
[null,56,8.5218979084368645,5569.1318465909117,null,156,6.8941840992429047,6688.9246244221822]
[null,57,6.1886942813581767,19103.854266864706,null,157,4.7677875830079914,6677.8176051740083]
[null,58,8.9721494695581026,5369.0937987413363,null,158,6.7875509279457855,9897.9658623455998]
[null,59,5.11194005981615,9440.8540851041307,null,159,10.007653010449244,9993.6802355301843]
[null,60,8.556658275049541,5474.3029521704211,null,160,4.9599054994955765,8413.9772192203091]
[null,61,6.4335804859150372,4568.0479762931027,null,161,3.9458151424140384,5347.5177179801294]
[null,62,8.200095034189804,4486.2026034909113,null,162,8.6992515166331383,8758.4354975872939]
[null,63,5.9127506213803507,5913.8960900245584,null,163,6.2120762495952908,7872.8021587178819]
[null,64,5.487554346629711,14027.9265615529,null,164,13.473532769882912,13098.033942563619]
[null,65,7.0004381063863086,4841.2815909688816,null,165,13.938144354711699,13338.147569751027]
[null,66,4.5890909370440784,3985.5859304932392,null,166,10.124085710941417,12918.658640600344]
[null,67,4.6681324737924665,6670.6381850420603,null,167,3.9877010321967221,6747.1824289220895]
[null,68,-1.634983337737407,5032.9000505152562,null,168,0.36194893791251592,4850.1512476503631]
[null,69,10.890164504274921,9305.2259917958236,null,169,10.267770747788992,10235.818361728061]
[null,70,5.0987030855427982,3069.3455650077635,null,170,8.5837698651383771,8227.6748324089549]
[null,71,10.563077248224687,5517.405808613772,null,171,11.126572109243085,13769.325166504534]
[null,72,12.268723354377038,6182.6732466834192,null,172,14.708431587240057,14345.705499339969]
[null,73,9.5126527732621575,4768.1402481577888,null,173,5.4255364269539497,9668.6228816033909]
[null,74,5.1000716478753443,3148.5436205703631,null,174,12.822125181777842,12538.797167065097]
[null,75,5.7277818048669413,3356.8887545489042,null,175,5.1862925489276623,7339.102737667672]
[null,76,3.7457441294888283,1971.1625068195901,null,176,3.8401089650958711,4931.3006483768168]
[null,77,11.324641211559015,7634.6497425745356,null,177,2.1396817346653152,11003.815217742205]
[null,78,4.3523933298869295,2980.6625251791288,null,178,5.6182774859069955,7311.8574149302749]
[null,79,10.875013528448807,11109.678764112685,null,179,8.6751946655806869,8539.9214385549567]
[null,80,7.6720232858929309,5023.0276701199582,null,180,3.9008440943011879,5155.0095336507793]
[null,81,10.672960849566044,9763.9967311552518,null,181,5.6893061701626291,5706.3551660487556]
[null,82,3.4716013057436403,1677.7465345623355,null,182,6.8797872066389179,6729.9170293805901]
[null,83,10.070398192997285,7454.4426672932641,null,183,4.2867214370266726,5057.2115051134315]
[null,84,14.149249843265443,7425.3468987903034,null,184,13.746491650811786,14159.687276564517]
[null,85,10.948090740498266,9027.9218998747128,null,185,4.3880452107411001,6599.7752016007407]
[null,86,4.2069542364304411,8743.5025245260731,null,186,0.42522840947802132,4934.8983672670574]
[null,87,6.4890227275573649,9353.7826836702734,null,187,6.7844969821088341,8045.0357068033563]
[null,88,0.62931492176215387,3964.2959787645282,null,188,5.7583633342603848,8471.1062642191937]
[null,89,10.629234487620304,7358.8127252886152,null,189,6.5783863718503444,7607.3842817706518]
[null,90,3.7268421887327379,2838.2041594188881,null,190,7.2824680559788755,7263.2445755410354]
[null,91,8.1165809269660354,115200.02655662232,null,191,6.3676505309324494,6437.7926291620597]
[null,92,5.3925770713520773,14707.58675871268,null,192,5.475083985294809,6326.3809850316402]
[null,93,10.677305853582503,6598.5076173051566,null,193,6.3415313611741908,8331.847268803027]
[null,94,6.0363700869362384,7500.0210888805523,null,194,5.6876624527104056,6866.5153594941958]
[null,95,0.41208377176804351,936.69917305127171,null,195,5.177889150290313,8633.0328871896327]
[null,96,2.8831788314381996,5197.4054467773885,null,196,7.5684831866174864,13351.104313723808]
[null,97,11.625662938529095,6231.841874232573,null,197,8.6556339226075369,10863.093471953716]
[null,98,4.9401155185063335,8692.0511302212963,null,198,7.525936333997592,8810.7391949038883]
[null,99,8.2080085572306576,4141.773199232397,null,199,8.5309817148283091,14064.62142629152]
[null,100,4.5831588303784203,3620.3411528704773,null,200,0.87465481266400336,1231.1721264412508]

{"sheet":"Summary Statistics","index":1,"n_rows":23,"n_cols":6,"rows_kept":23,"cut":false,"hidden":false,"merged":[]}
["Summary Statistics"]
[]
[null,"Control Group",null,null,"Treatment Group"]
[null,"Effect","Cost",null,"Effect","Cost"]
["mean"]
["standard deviation"]
["standard error"]
[]
[null,"Difference"]
[null,"Effect","Cost"]
["mean"]
["standard error"]
["lower 95% limit"]
["upper 95% limit"]
[]
[null,"ICER"]
[]
["point estimate"]
[]
[]
["correlation (control)"]
["correlation (treatment)"]
["correlation (difference)"]

{"sheet":"Bootstrapping","index":2,"n_rows":1007,"n_cols":38,"rows_kept":1007,"cut":false,"hidden":false,"merged":[]}
["Bootstrap Results"]
[null,null,null,null,null,null,null,null,null,null,null,null,null,null,null,null,null,null,null,null,null,null,null,null,null,"Rc",50000]
["The bootstrap resamples:",null,null,null,null,null,null,null,"Bootstrapped means for the:",null,null,null,null,null,null,null,null,null,null,null,null,null,null,null,null,"pCE",null,null,null,null,null,null,null,null,null,null,"pCE"]
[]
["Control Group",null,null,null,"Treatment Group",null,null,null,"Bootstrap ",null,"Control group",null,null,null,"Treatment Group",null,null,"Differences",null,null,null,null,null,null,null,null,null,null,null,null,null,"Bootstrapping net-benefits"]
["Patient","Effect","Cost",null,"Patient","Effect","Cost",null,"replication",null,"Effect","Cost",null,null,"Effect","Cost",null,"Effect","Cost",null,"ICER",null,"Summary information for the ICER",null,null,null,"CE?",null,"Rc","pCE",null,"NB",null,"Summary information",null,null,null,"CE?"]
[]
[{"$f":"INT(RAND()*100)+1","v":70},{"$f":"VLOOKUP(A8,control,2,1)","v":5.0987030855427982},{"$f":"VLOOKUP(A8,control,3,1)","v":3069.3455650077635},null,{"$f":"INT(RAND()*100)+101","v":174},{"$f":"VLOOKUP(E8,treatment,2,1)","v":12.822125181777842},{"$f":"VLOOKUP(E8,treatment,3,1)","v":12538.797167065097},null,1,null,null,null,null,null,null,null,null,null,null,null,null,null,"mean",null,null,null,null,null,0,null,null,null,null,"mean"]
[{"$f":"INT(RAND()*100)+1","v":51},9.3299434462895405,12358.138658835098,null,{"$f":"INT(RAND()*100)+101","v":119},13.630870919775116,17970.13463327743,null,2,null,null,null,null,null,null,null,null,null,null,null,null,null,"Standard deviation",null,null,null,null,null,1000,null,null,null,null,"Standard deviation"]
[93,10.677305853582503,6598.5076173051566,null,143,13.520069774223522,13868.58686526778,null,3,null,null,null,null,null,null,null,null,null,null,null,null,null,"Median",null,null,null,null,null,2000,null,null,null,null,"Median"]
[17,2.3804591266808512,1547.3076696579021,null,160,4.9599054994955765,8413.9772192203091,null,4,null,null,null,null,null,null,null,null,null,null,null,null,null,"2.5th percentile ",null,null,null,null,null,3000,null,null,null,null,"2.5th percentile "]
[83,10.070398192997285,7454.4426672932641,null,164,13.473532769882912,13098.033942563619,null,5,null,null,null,null,null,null,null,null,null,null,null,null,null,"97.5th percentile",null,null,null,null,null,4000,null,null,null,null,"97.5th percentile"]
[32,2.0781199271286472,1198.1531341399686,null,192,5.475083985294809,6326.3809850316402,null,6,null,null,null,null,null,null,null,null,null,null,null,null,null,"min",null,null,null,null,null,5000,null,null,null,null,"min"]
[46,0.41333468425225467,2915.8103564257872,null,164,13.473532769882912,13098.033942563619,null,7,null,null,null,null,null,null,null,null,null,null,null,null,null,"max",null,null,null,null,null,6000,null,null,null,null,"max"]
[59,5.11194005981615,9440.8540851041307,null,147,12.136946526092006,12653.078039947584,null,8,null,null,null,null,null,null,null,null,null,null,null,null,null,null,null,null,null,null,null,7000]
[98,4.9401155185063335,8692.0511302212963,null,151,8.6927177360316286,12546.619338955159,null,9,null,null,null,null,null,null,null,null,null,null,null,null,null,null,null,null,null,null,null,8000]
[50,7.1365385198688571,5198.5565806135983,null,183,4.2867214370266726,5057.2115051134315,null,10,null,null,null,null,null,null,null,null,null,null,null,null,null,"Bin Range",null,null,null,null,null,9000,null,null,null,null,"Bin Range "]
[17,2.3804591266808512,1547.3076696579021,null,160,4.9599054994955765,8413.9772192203091,null,11,null,null,null,null,null,null,null,null,null,null,null,null,null,-20000,null,null,null,null,null,10000,null,null,null,null,-10000]
[45,5.2658437278400312,5607.4193936362153,null,105,4.9495945917755577,5949.4747580031508,null,12,null,null,null,null,null,null,null,null,null,null,null,null,null,-18000,null,null,null,null,null,11000,null,null,null,null,-9000]
[79,10.875013528448807,11109.678764112685,null,119,13.630870919775116,17970.13463327743,null,13,null,null,null,null,null,null,null,null,null,null,null,null,null,-16000,null,null,null,null,null,12000,null,null,null,null,-8000]
[78,4.3523933298869295,2980.6625251791288,null,185,4.3880452107411001,6599.7752016007407,null,14,null,null,null,null,null,null,null,null,null,null,null,null,null,-14000,null,null,null,null,null,13000,null,null,null,null,-7000]
[11,4.8890164803129901,3230.1907857596816,null,175,5.1862925489276623,7339.102737667672,null,15,null,null,null,null,null,null,null,null,null,null,null,null,null,-12000,null,null,null,null,null,14000,null,null,null,null,-6000]
[1,5.5230222229378008,3641.7574384520349,null,149,12.143761707957653,11829.126795409478,null,16,null,null,null,null,null,null,null,null,null,null,null,null,null,-10000,null,null,null,null,null,15000,null,null,null,null,-5000]
[88,0.62931492176215387,3964.2959787645282,null,183,4.2867214370266726,5057.2115051134315,null,17,null,null,null,null,null,null,null,null,null,null,null,null,null,-8000,null,null,null,null,null,16000,null,null,null,null,-4000]
[2,{"$f":"VLOOKUP(A25,control,2,1)","v":5.1919646630865142},{"$f":"VLOOKUP(A25,control,3,1)","v":12121.525911710989},null,140,{"$f":"VLOOKUP(E25,treatment,2,1)","v":4.5103596199229772},{"$f":"VLOOKUP(E25,treatment,3,1)","v":6376.9405190324496},null,18,null,null,null,null,null,null,null,null,null,null,null,null,null,-6000,null,null,null,null,null,17000,null,null,null,null,-3000]
[34,6.4271455137348639,6911.3667119870233,null,171,11.126572109243085,13769.325166504534,null,19,null,null,null,null,null,null,null,null,null,null,null,null,null,-4000,null,null,null,null,null,18000,null,null,null,null,-2000]
[73,9.5126527732621575,4768.1402481577888,null,149,12.143761707957653,11829.126795409478,null,20,null,null,null,null,null,null,null,null,null,null,null,null,null,-2000,null,null,null,null,null,19000,null,null,null,null,-1000]
[26,5.1525255897525506,3217.5851790241977,null,174,12.822125181777842,12538.797167065097,null,21,null,null,null,null,null,null,null,null,null,null,null,null,null,0,null,null,null,null,null,20000,null,null,null,null,0]
[22,2.9395774234965528,1482.4737602283785,null,152,6.6291311419083945,7874.3463358184927,null,22,null,null,null,null,null,null,null,null,null,null,null,null,null,2000,null,null,null,null,null,21000,null,null,null,null,1000]
[40,3.0389350020857511,2514.2031509741892,null,127,5.8625038404747096,9938.7644492985546,null,23,null,null,null,null,null,null,null,null,null,null,null,null,null,4000,null,null,null,null,null,22000,null,null,null,null,2000]
[9,11.711420822686083,6014.4187771436564,null,170,8.5837698651383771,8227.6748324089549,null,24,null,null,null,null,null,null,null,null,null,null,null,null,null,6000,null,null,null,null,null,23000,null,null,null,null,3000]
[66,4.5890909370440784,3985.5859304932392,null,167,3.9877010321967221,6747.1824289220895,null,25,null,null,null,null,null,null,null,null,null,null,null,null,null,8000,null,null,null,null,null,24000,null,null,null,null,4000]
[66,4.5890909370440784,3985.5859304932392,null,142,8.681236067051076,8968.7355160541174,null,26,null,null,null,null,null,null,null,null,null,null,null,null,null,10000,null,null,null,null,null,25000,null,null,null,null,5000]
[31,3.0286900313727401,6941.8348275230155,null,168,0.36194893791251592,4850.1512476503631,null,27,null,null,null,null,null,null,null,null,null,null,null,null,null,12000,null,null,null,null,null,26000,null,null,null,null,6000]
[93,10.677305853582503,6598.5076173051566,null,143,13.520069774223522,13868.58686526778,null,28,null,null,null,null,null,null,null,null,null,null,null,null,null,14000,null,null,null,null,null,27000,null,null,null,null,7000]
[5,7.5310069563682553,13883.478772580404,null,184,13.746491650811786,14159.687276564517,null,29,null,null,null,null,null,null,null,null,null,null,null,null,null,16000,null,null,null,null,null,28000,null,null,null,null,8000]
[12,3.7696169751314508,2868.1762034873132,null,120,10.776690243020884,20972.192961268287,null,30,null,null,null,null,null,null,null,null,null,null,null,null,null,18000,null,null,null,null,null,29000,null,null,null,null,9000]
[99,8.2080085572306576,4141.773199232397,null,196,7.5684831866174864,13351.104313723808,null,31,null,null,null,null,null,null,null,null,null,null,null,null,null,20000,null,null,null,null,null,30000,null,null,null,null,10000]
[21,0.28730140064589299,5738.2983934390068,null,180,3.9008440943011879,5155.0095336507793,null,32,null,null,null,null,null,null,null,null,null,null,null,null,null,22000,null,null,null,null,null,31000,null,null,null,null,11000]
[75,5.7277818048669413,3356.8887545489042,null,183,4.2867214370266726,5057.2115051134315,null,33,null,null,null,null,null,null,null,null,null,null,null,null,null,24000,null,null,null,null,null,32000,null,null,null,null,12000]
[2,5.1919646630865142,12121.525911710989,null,151,8.6927177360316286,12546.619338955159,null,34,null,null,null,null,null,null,null,null,null,null,null,null,null,26000,null,null,null,null,null,33000,null,null,null,null,13000]
[39,0.52728268787334431,11384.432571411606,null,170,8.5837698651383771,8227.6748324089549,null,35,null,null,null,null,null,null,null,null,null,null,null,null,null,28000,null,null,null,null,null,34000,null,null,null,null,14000]
[35,3.8029388332634952,2782.0325658680358,null,181,5.6893061701626291,5706.3551660487556,null,36,null,null,null,null,null,null,null,null,null,null,null,null,null,30000,null,null,null,null,null,35000,null,null,null,null,15000]
[2,5.1919646630865142,12121.525911710989,null,199,8.5309817148283091,14064.62142629152,null,37,null,null,null,null,null,null,null,null,null,null,null,null,null,32000,null,null,null,null,null,36000,null,null,null,null,16000]
[16,4.1997952983587261,4520.6827977691773,null,117,9.9693945714417964,9842.2889756341883,null,38,null,null,null,null,null,null,null,null,null,null,null,null,null,34000,null,null,null,null,null,37000,null,null,null,null,17000]
[16,4.1997952983587261,4520.6827977691773,null,147,12.136946526092006,12653.078039947584,null,39,null,null,null,null,null,null,null,null,null,null,null,null,null,36000,null,null,null,null,null,38000,null,null,null,null,18000]
[1,5.5230222229378008,3641.7574384520349,null,106,4.5853215109917471,6029.6450313752912,null,40,null,null,null,null,null,null,null,null,null,null,null,null,null,38000,null,null,null,null,null,39000,null,null,null,null,19000]
[7,6.9295998689004641,5326.9273592200743,null,134,8.1768027408037547,10218.555084335361,null,41,null,null,null,null,null,null,null,null,null,null,null,null,null,40000,null,null,null,null,null,40000,null,null,null,null,20000]
[83,10.070398192997285,7454.4426672932641,null,195,5.177889150290313,8633.0328871896327,null,42,null,null,null,null,null,null,null,null,null,null,null,null,null,42000,null,null,null,null,null,41000]
[23,4.3028129417414434,3009.2105111134483,null,140,4.5103596199229772,6376.9405190324496,null,43,null,null,null,null,null,null,null,null,null,null,null,null,null,44000,null,null,null,null,null,42000]
[87,6.4890227275573649,9353.7826836702734,null,196,7.5684831866174864,13351.104313723808,null,44,null,null,null,null,null,null,null,null,null,null,null,null,null,46000,null,null,null,null,null,43000]
[22,2.9395774234965528,1482.4737602283785,null,106,4.5853215109917471,6029.6450313752912,null,45,null,null,null,null,null,null,null,null,null,null,null,null,null,48000,null,null,null,null,null,44000]
[77,11.324641211559015,7634.6497425745356,null,200,0.87465481266400336,1231.1721264412508,null,46,null,null,null,null,null,null,null,null,null,null,null,null,null,50000,null,null,null,null,null,45000]
[100,4.5831588303784203,3620.3411528704773,null,137,0.82936118236748424,3030.4287878664127,null,47,null,null,null,null,null,null,null,null,null,null,null,null,null,52000,null,null,null,null,null,46000]
[13,8.5325856270218168,5451.7889418183131,null,105,4.9495945917755577,5949.4747580031508,null,48,null,null,null,null,null,null,null,null,null,null,null,null,null,54000,null,null,null,null,null,47000]
[40,3.0389350020857511,2514.2031509741892,null,115,8.2341033909470696,15783.230279664196,null,49,null,null,null,null,null,null,null,null,null,null,null,null,null,56000,null,null,null,null,null,48000]
[5,7.5310069563682553,13883.478772580404,null,195,5.177889150290313,8633.0328871896327,null,50,null,null,null,null,null,null,null,null,null,null,null,null,null,58000,null,null,null,null,null,49000]
[74,5.1000716478753443,3148.5436205703631,null,141,10.279561770903793,10257.108135735336,null,51,null,null,null,null,null,null,null,null,null,null,null,null,null,60000,null,null,null,null,null,50000]
[4,9.5786366212729313,7900.4873298371031,null,125,4.7620607571642326,6267.3571986046873,null,52]
[95,0.41208377176804351,936.69917305127171,null,174,12.822125181777842,12538.797167065097,null,53]
[29,9.6700977608401093,5240.3827577613456,null,109,9.6472873740787062,13825.65313678408,null,54]
[58,8.9721494695581026,5369.0937987413363,null,134,8.1768027408037547,10218.555084335361,null,55]
[23,4.3028129417414434,3009.2105111134483,null,137,0.82936118236748424,3030.4287878664127,null,56]
[38,8.5633725581160238,3994.5465030110922,null,138,13.831868439621624,13091.205779087431,null,57]
[94,6.0363700869362384,7500.0210888805523,null,196,7.5684831866174864,13351.104313723808,null,58]
[4,9.5786366212729313,7900.4873298371031,null,141,10.279561770903793,10257.108135735336,null,59]
[73,9.5126527732621575,4768.1402481577888,null,140,4.5103596199229772,6376.9405190324496,null,60]
[45,5.2658437278400312,5607.4193936362153,null,156,6.8941840992429047,6688.9246244221822,null,61]
[54,5.4543160134070146,4426.2361922328437,null,162,8.6992515166331383,8758.4354975872939,null,62]
[16,4.1997952983587261,4520.6827977691773,null,163,6.2120762495952908,7872.8021587178819,null,63]
[43,3.5947629533543473,2863.2315321034957,null,194,5.6876624527104056,6866.5153594941958,null,64]
[10,6.1180992616600012,9322.0321734028512,null,142,8.681236067051076,8968.7355160541174,null,65]
[{"$f":"INT(RAND()*100)+1","v":86},4.2069542364304411,8743.5025245260731,null,{"$f":"INT(RAND()*100)+101","v":117},9.9693945714417964,9842.2889756341883,null,66]
[54,5.4543160134070146,4426.2361922328437,null,173,5.4255364269539497,9668.6228816033909,null,67]
[93,10.677305853582503,6598.5076173051566,null,113,13.197781054869752,12882.237819428197,null,68]
[4,9.5786366212729313,7900.4873298371031,null,120,10.776690243020884,20972.192961268287,null,69]
[30,6.5010231063650092,3169.3103583302163,null,138,13.831868439621624,13091.205779087431,null,70]
[91,8.1165809269660354,115200.02655662232,null,122,1.5514953192979193,9871.2068825291681,null,71]
[19,4.5487748338420486,3546.4025970283678,null,185,4.3880452107411001,6599.7752016007407,null,72]
[93,10.677305853582503,6598.5076173051566,null,189,6.5783863718503444,7607.3842817706518,null,73]
[4,9.5786366212729313,7900.4873298371031,null,167,3.9877010321967221,6747.1824289220895,null,74]
[45,5.2658437278400312,5607.4193936362153,null,123,4.8447275495681374,12813.828462325819,null,75]
[94,6.0363700869362384,7500.0210888805523,null,164,13.473532769882912,13098.033942563619,null,76]
[51,9.3299434462895405,12358.138658835098,null,130,7.0911589424121502,6601.4757734658779,null,77]
[67,4.6681324737924665,6670.6381850420603,null,116,3.5647898776376379,5259.1371601328665,null,78]
[59,5.11194005981615,9440.8540851041307,null,114,2.6726811534058359,13839.593254837855,null,79]
[20,9.5915602530958797,5646.9808024567637,null,101,8.4486795295195058,7674.2425512401314,null,80]
[14,6.3183526617630488,7685.2876759782257,null,106,4.5853215109917471,6029.6450313752912,null,81]
[66,{"$f":"VLOOKUP(A89,control,2,1)","v":4.5890909370440784},{"$f":"VLOOKUP(A89,control,3,1)","v":3985.5859304932392},null,168,{"$f":"VLOOKUP(E89,treatment,2,1)","v":0.36194893791251592},{"$f":"VLOOKUP(E89,treatment,3,1)","v":4850.1512476503631},null,82]
[69,10.890164504274921,9305.2259917958236,null,103,3.1263016140702451,6530.9439895774494,null,83]
[15,3.9034690704966,3228.510418855466,null,186,0.42522840947802132,4934.8983672670574,null,84]
[23,4.3028129417414434,3009.2105111134483,null,183,4.2867214370266726,5057.2115051134315,null,85]
[58,8.9721494695581026,5369.0937987413363,null,185,4.3880452107411001,6599.7752016007407,null,86]
[1,5.5230222229378008,3641.7574384520349,null,101,8.4486795295195058,7674.2425512401314,null,87]
[42,12.236518163684371,7825.657381783948,null,192,5.475083985294809,6326.3809850316402,null,88]
[29,9.6700977608401093,5240.3827577613456,null,129,-0.54777190984754087,7050.9204931595659,null,89]
[29,9.6700977608401093,5240.3827577613456,null,123,4.8447275495681374,12813.828462325819,null,90]
[55,6.0594326784440202,8149.1107594597288,null,157,4.7677875830079914,6677.8176051740083,null,91]
[87,6.4890227275573649,9353.7826836702734,null,200,0.87465481266400336,1231.1721264412508,null,92]
[81,10.672960849566044,9763.9967311552518,null,184,13.746491650811786,14159.687276564517,null,93]
[47,{"$f":"VLOOKUP(A101,control,2,1)","v":8.078396591818171},{"$f":"VLOOKUP(A101,control,3,1)","v":4134.2422690551421},null,113,{"$f":"VLOOKUP(E101,treatment,2,1)","v":13.197781054869752},{"$f":"VLOOKUP(E101,treatment,3,1)","v":12882.237819428197},null,94]
[96,2.8831788314381996,5197.4054467773885,null,192,5.475083985294809,6326.3809850316402,null,95]
[5,7.5310069563682553,13883.478772580404,null,101,8.4486795295195058,7674.2425512401314,null,96]
[19,4.5487748338420486,3546.4025970283678,null,169,10.267770747788992,10235.818361728061,null,97]
[61,6.4335804859150372,4568.0479762931027,null,139,12.061027786969371,36909.61325616765,null,98]
[75,5.7277818048669413,3356.8887545489042,null,154,14.352477681135197,14355.009331620193,null,99]
[83,10.070398192997285,7454.4426672932641,null,173,5.4255364269539497,9668.6228816033909,null,100]
[null,null,null,null,null,null,null,null,101]
["means:",{"$f":"AVERAGE(B8:B107)","v":6.281858745107467},{"$f":"AVERAGE(C8:C107)","v":7016.6189023321358},null,null,{"$f":"AVERAGE(F8:F107)","v":7.414939342717096},{"$f":"AVERAGE(G8:G107)","v":9736.4807268853019},null,102]
[null,null,null,null,null,null,null,null,103]
[null,null,null,null,null,null,null,null,104]
[null,null,null,null,null,null,null,null,105]
[null,null,null,null,null,null,null,null,106]
[null,null,null,null,null,null,null,null,107]
[null,null,null,null,null,null,null,null,108]
[null,null,null,null,null,null,null,null,109]
[null,null,null,null,null,null,null,null,110]
[null,null,null,null,null,null,null,null,111]
[null,null,null,null,null,null,null,null,112]
[null,null,null,null,null,null,null,null,113]
[null,null,null,null,null,null,null,null,114]
[null,null,null,null,null,null,null,null,115]
[null,null,null,null,null,null,null,null,116]
[null,null,null,null,null,null,null,null,117]
[null,null,null,null,null,null,null,null,118]
[null,null,null,null,null,null,null,null,119]
[null,null,null,null,null,null,null,null,120]
[null,null,null,null,null,null,null,null,121]
[null,null,null,null,null,null,null,null,122]
[null,null,null,null,null,null,null,null,123]
[null,null,null,null,null,null,null,null,124]
[null,null,null,null,null,null,null,null,125]
[null,null,null,null,null,null,null,null,126]
[null,null,null,null,null,null,null,null,127]
[null,null,null,null,null,null,null,null,128]
[null,null,null,null,null,null,null,null,129]
[null,null,null,null,null,null,null,null,130]
[null,null,null,null,null,null,null,null,131]
[null,null,null,null,null,null,null,null,132]
[null,null,null,null,null,null,null,null,133]
[null,null,null,null,null,null,null,null,134]
[null,null,null,null,null,null,null,null,135]
[null,null,null,null,null,null,null,null,136]
[null,null,null,null,null,null,null,null,137]
[null,null,null,null,null,null,null,null,138]
[null,null,null,null,null,null,null,null,139]
[null,null,null,null,null,null,null,null,140]
[null,null,null,null,null,null,null,null,141]
[null,null,null,null,null,null,null,null,142]
[null,null,null,null,null,null,null,null,143]
[null,null,null,null,null,null,null,null,144]
[null,null,null,null,null,null,null,null,145]
[null,null,null,null,null,null,null,null,146]
[null,null,null,null,null,null,null,null,147]
[null,null,null,null,null,null,null,null,148]
[null,null,null,null,null,null,null,null,149]
[null,null,null,null,null,null,null,null,150]
[null,null,null,null,null,null,null,null,151]
[null,null,null,null,null,null,null,null,152]
[null,null,null,null,null,null,null,null,153]
[null,null,null,null,null,null,null,null,154]
[null,null,null,null,null,null,null,null,155]
[null,null,null,null,null,null,null,null,156]
[null,null,null,null,null,null,null,null,157]
[null,null,null,null,null,null,null,null,158]
[null,null,null,null,null,null,null,null,159]
[null,null,null,null,null,null,null,null,160]
[null,null,null,null,null,null,null,null,161]
[null,null,null,null,null,null,null,null,162]
[null,null,null,null,null,null,null,null,163]
[null,null,null,null,null,null,null,null,164]
[null,null,null,null,null,null,null,null,165]
[null,null,null,null,null,null,null,null,166]
[null,null,null,null,null,null,null,null,167]
[null,null,null,null,null,null,null,null,168]
[null,null,null,null,null,null,null,null,169]
[null,null,null,null,null,null,null,null,170]
[null,null,null,null,null,null,null,null,171]
[null,null,null,null,null,null,null,null,172]
[null,null,null,null,null,null,null,null,173]
[null,null,null,null,null,null,null,null,174]
[null,null,null,null,null,null,null,null,175]
[null,null,null,null,null,null,null,null,176]
[null,null,null,null,null,null,null,null,177]
[null,null,null,null,null,null,null,null,178]
[null,null,null,null,null,null,null,null,179]
[null,null,null,null,null,null,null,null,180]
[null,null,null,null,null,null,null,null,181]
[null,null,null,null,null,null,null,null,182]
[null,null,null,null,null,null,null,null,183]
[null,null,null,null,null,null,null,null,184]
[null,null,null,null,null,null,null,null,185]
[null,null,null,null,null,null,null,null,186]
[null,null,null,null,null,null,null,null,187]
[null,null,null,null,null,null,null,null,188]
[null,null,null,null,null,null,null,null,189]
[null,null,null,null,null,null,null,null,190]
[null,null,null,null,null,null,null,null,191]
[null,null,null,null,null,null,null,null,192]
[null,null,null,null,null,null,null,null,193]
[null,null,null,null,null,null,null,null,194]
[null,null,null,null,null,null,null,null,195]
[null,null,null,null,null,null,null,null,196]
[null,null,null,null,null,null,null,null,197]
[null,null,null,null,null,null,null,null,198]
[null,null,null,null,null,null,null,null,199]
[null,null,null,null,null,null,null,null,200]
[null,null,null,null,null,null,null,null,201]
[null,null,null,null,null,null,null,null,202]
[null,null,null,null,null,null,null,null,203]
[null,null,null,null,null,null,null,null,204]
[null,null,null,null,null,null,null,null,205]
[null,null,null,null,null,null,null,null,206]
[null,null,null,null,null,null,null,null,207]
[null,null,null,null,null,null,null,null,208]
[null,null,null,null,null,null,null,null,209]
[null,null,null,null,null,null,null,null,210]
[null,null,null,null,null,null,null,null,211]
[null,null,null,null,null,null,null,null,212]
[null,null,null,null,null,null,null,null,213]
[null,null,null,null,null,null,null,null,214]
[null,null,null,null,null,null,null,null,215]
[null,null,null,null,null,null,null,null,216]
[null,null,null,null,null,null,null,null,217]
[null,null,null,null,null,null,null,null,218]
[null,null,null,null,null,null,null,null,219]
[null,null,null,null,null,null,null,null,220]
[null,null,null,null,null,null,null,null,221]
[null,null,null,null,null,null,null,null,222]
[null,null,null,null,null,null,null,null,223]
[null,null,null,null,null,null,null,null,224]
[null,null,null,null,null,null,null,null,225]
[null,null,null,null,null,null,null,null,226]
[null,null,null,null,null,null,null,null,227]
[null,null,null,null,null,null,null,null,228]
[null,null,null,null,null,null,null,null,229]
[null,null,null,null,null,null,null,null,230]
[null,null,null,null,null,null,null,null,231]
[null,null,null,null,null,null,null,null,232]
[null,null,null,null,null,null,null,null,233]
[null,null,null,null,null,null,null,null,234]
[null,null,null,null,null,null,null,null,235]
[null,null,null,null,null,null,null,null,236]
[null,null,null,null,null,null,null,null,237]
[null,null,null,null,null,null,null,null,238]
[null,null,null,null,null,null,null,null,239]
[null,null,null,null,null,null,null,null,240]
[null,null,null,null,null,null,null,null,241]
[null,null,null,null,null,null,null,null,242]
[null,null,null,null,null,null,null,null,243]
[null,null,null,null,null,null,null,null,244]
[null,null,null,null,null,null,null,null,245]
[null,null,null,null,null,null,null,null,246]
[null,null,null,null,null,null,null,null,247]
[null,null,null,null,null,null,null,null,248]
[null,null,null,null,null,null,null,null,249]
[null,null,null,null,null,null,null,null,250]
[null,null,null,null,null,null,null,null,251]
[null,null,null,null,null,null,null,null,252]
[null,null,null,null,null,null,null,null,253]
[null,null,null,null,null,null,null,null,254]
[null,null,null,null,null,null,null,null,255]
[null,null,null,null,null,null,null,null,256]
[null,null,null,null,null,null,null,null,257]
[null,null,null,null,null,null,null,null,258]
[null,null,null,null,null,null,null,null,259]
[null,null,null,null,null,null,null,null,260]
[null,null,null,null,null,null,null,null,261]
[null,null,null,null,null,null,null,null,262]
[null,null,null,null,null,null,null,null,263]
[null,null,null,null,null,null,null,null,264]
[null,null,null,null,null,null,null,null,265]
[null,null,null,null,null,null,null,null,266]
[null,null,null,null,null,null,null,null,267]
[null,null,null,null,null,null,null,null,268]
[null,null,null,null,null,null,null,null,269]
[null,null,null,null,null,null,null,null,270]
[null,null,null,null,null,null,null,null,271]
[null,null,null,null,null,null,null,null,272]
[null,null,null,null,null,null,null,null,273]
[null,null,null,null,null,null,null,null,274]
[null,null,null,null,null,null,null,null,275]
[null,null,null,null,null,null,null,null,276]
[null,null,null,null,null,null,null,null,277]
[null,null,null,null,null,null,null,null,278]
[null,null,null,null,null,null,null,null,279]
[null,null,null,null,null,null,null,null,280]
[null,null,null,null,null,null,null,null,281]
[null,null,null,null,null,null,null,null,282]
[null,null,null,null,null,null,null,null,283]
[null,null,null,null,null,null,null,null,284]
[null,null,null,null,null,null,null,null,285]
[null,null,null,null,null,null,null,null,286]
[null,null,null,null,null,null,null,null,287]
[null,null,null,null,null,null,null,null,288]
[null,null,null,null,null,null,null,null,289]
[null,null,null,null,null,null,null,null,290]
[null,null,null,null,null,null,null,null,291]
[null,null,null,null,null,null,null,null,292]
[null,null,null,null,null,null,null,null,293]
[null,null,null,null,null,null,null,null,294]
[null,null,null,null,null,null,null,null,295]
[null,null,null,null,null,null,null,null,296]
[null,null,null,null,null,null,null,null,297]
[null,null,null,null,null,null,null,null,298]
[null,null,null,null,null,null,null,null,299]
[null,null,null,null,null,null,null,null,300]
[null,null,null,null,null,null,null,null,301]
[null,null,null,null,null,null,null,null,302]
[null,null,null,null,null,null,null,null,303]
[null,null,null,null,null,null,null,null,304]
[null,null,null,null,null,null,null,null,305]
[null,null,null,null,null,null,null,null,306]
[null,null,null,null,null,null,null,null,307]
[null,null,null,null,null,null,null,null,308]
[null,null,null,null,null,null,null,null,309]
[null,null,null,null,null,null,null,null,310]
[null,null,null,null,null,null,null,null,311]
[null,null,null,null,null,null,null,null,312]
[null,null,null,null,null,null,null,null,313]
[null,null,null,null,null,null,null,null,314]
[null,null,null,null,null,null,null,null,315]
[null,null,null,null,null,null,null,null,316]
[null,null,null,null,null,null,null,null,317]
[null,null,null,null,null,null,null,null,318]
[null,null,null,null,null,null,null,null,319]
[null,null,null,null,null,null,null,null,320]
[null,null,null,null,null,null,null,null,321]
[null,null,null,null,null,null,null,null,322]
[null,null,null,null,null,null,null,null,323]
[null,null,null,null,null,null,null,null,324]
[null,null,null,null,null,null,null,null,325]
[null,null,null,null,null,null,null,null,326]
[null,null,null,null,null,null,null,null,327]
[null,null,null,null,null,null,null,null,328]
[null,null,null,null,null,null,null,null,329]
[null,null,null,null,null,null,null,null,330]
[null,null,null,null,null,null,null,null,331]
[null,null,null,null,null,null,null,null,332]
[null,null,null,null,null,null,null,null,333]
[null,null,null,null,null,null,null,null,334]
[null,null,null,null,null,null,null,null,335]
[null,null,null,null,null,null,null,null,336]
[null,null,null,null,null,null,null,null,337]
[null,null,null,null,null,null,null,null,338]
[null,null,null,null,null,null,null,null,339]
[null,null,null,null,null,null,null,null,340]
[null,null,null,null,null,null,null,null,341]
[null,null,null,null,null,null,null,null,342]
[null,null,null,null,null,null,null,null,343]
[null,null,null,null,null,null,null,null,344]
[null,null,null,null,null,null,null,null,345]
[null,null,null,null,null,null,null,null,346]
[null,null,null,null,null,null,null,null,347]
[null,null,null,null,null,null,null,null,348]
[null,null,null,null,null,null,null,null,349]
[null,null,null,null,null,null,null,null,350]
[null,null,null,null,null,null,null,null,351]
[null,null,null,null,null,null,null,null,352]
[null,null,null,null,null,null,null,null,353]
[null,null,null,null,null,null,null,null,354]
[null,null,null,null,null,null,null,null,355]
[null,null,null,null,null,null,null,null,356]
[null,null,null,null,null,null,null,null,357]
[null,null,null,null,null,null,null,null,358]
[null,null,null,null,null,null,null,null,359]
[null,null,null,null,null,null,null,null,360]
[null,null,null,null,null,null,null,null,361]
[null,null,null,null,null,null,null,null,362]
[null,null,null,null,null,null,null,null,363]
[null,null,null,null,null,null,null,null,364]
[null,null,null,null,null,null,null,null,365]
[null,null,null,null,null,null,null,null,366]
[null,null,null,null,null,null,null,null,367]
[null,null,null,null,null,null,null,null,368]
[null,null,null,null,null,null,null,null,369]
[null,null,null,null,null,null,null,null,370]
[null,null,null,null,null,null,null,null,371]
[null,null,null,null,null,null,null,null,372]
[null,null,null,null,null,null,null,null,373]
[null,null,null,null,null,null,null,null,374]
[null,null,null,null,null,null,null,null,375]
[null,null,null,null,null,null,null,null,376]
[null,null,null,null,null,null,null,null,377]
[null,null,null,null,null,null,null,null,378]
[null,null,null,null,null,null,null,null,379]
[null,null,null,null,null,null,null,null,380]
[null,null,null,null,null,null,null,null,381]
[null,null,null,null,null,null,null,null,382]
[null,null,null,null,null,null,null,null,383]
[null,null,null,null,null,null,null,null,384]
[null,null,null,null,null,null,null,null,385]
[null,null,null,null,null,null,null,null,386]
[null,null,null,null,null,null,null,null,387]
[null,null,null,null,null,null,null,null,388]
[null,null,null,null,null,null,null,null,389]
[null,null,null,null,null,null,null,null,390]
[null,null,null,null,null,null,null,null,391]
[null,null,null,null,null,null,null,null,392]
[null,null,null,null,null,null,null,null,393]
[null,null,null,null,null,null,null,null,394]
[null,null,null,null,null,null,null,null,395]
[null,null,null,null,null,null,null,null,396]
[null,null,null,null,null,null,null,null,397]
[null,null,null,null,null,null,null,null,398]
[null,null,null,null,null,null,null,null,399]
[null,null,null,null,null,null,null,null,400]
[null,null,null,null,null,null,null,null,401]
[null,null,null,null,null,null,null,null,402]
[null,null,null,null,null,null,null,null,403]
[null,null,null,null,null,null,null,null,404]
[null,null,null,null,null,null,null,null,405]
[null,null,null,null,null,null,null,null,406]
[null,null,null,null,null,null,null,null,407]
[null,null,null,null,null,null,null,null,408]
[null,null,null,null,null,null,null,null,409]
[null,null,null,null,null,null,null,null,410]
[null,null,null,null,null,null,null,null,411]
[null,null,null,null,null,null,null,null,412]
[null,null,null,null,null,null,null,null,413]
[null,null,null,null,null,null,null,null,414]
[null,null,null,null,null,null,null,null,415]
[null,null,null,null,null,null,null,null,416]
[null,null,null,null,null,null,null,null,417]
[null,null,null,null,null,null,null,null,418]
[null,null,null,null,null,null,null,null,419]
[null,null,null,null,null,null,null,null,420]
[null,null,null,null,null,null,null,null,421]
[null,null,null,null,null,null,null,null,422]
[null,null,null,null,null,null,null,null,423]
[null,null,null,null,null,null,null,null,424]
[null,null,null,null,null,null,null,null,425]
[null,null,null,null,null,null,null,null,426]
[null,null,null,null,null,null,null,null,427]
[null,null,null,null,null,null,null,null,428]
[null,null,null,null,null,null,null,null,429]
[null,null,null,null,null,null,null,null,430]
[null,null,null,null,null,null,null,null,431]
[null,null,null,null,null,null,null,null,432]
[null,null,null,null,null,null,null,null,433]
[null,null,null,null,null,null,null,null,434]
[null,null,null,null,null,null,null,null,435]
[null,null,null,null,null,null,null,null,436]
[null,null,null,null,null,null,null,null,437]
[null,null,null,null,null,null,null,null,438]
[null,null,null,null,null,null,null,null,439]
[null,null,null,null,null,null,null,null,440]
[null,null,null,null,null,null,null,null,441]
[null,null,null,null,null,null,null,null,442]
[null,null,null,null,null,null,null,null,443]
[null,null,null,null,null,null,null,null,444]
[null,null,null,null,null,null,null,null,445]
[null,null,null,null,null,null,null,null,446]
[null,null,null,null,null,null,null,null,447]
[null,null,null,null,null,null,null,null,448]
[null,null,null,null,null,null,null,null,449]
[null,null,null,null,null,null,null,null,450]
[null,null,null,null,null,null,null,null,451]
[null,null,null,null,null,null,null,null,452]
[null,null,null,null,null,null,null,null,453]
[null,null,null,null,null,null,null,null,454]
[null,null,null,null,null,null,null,null,455]
[null,null,null,null,null,null,null,null,456]
[null,null,null,null,null,null,null,null,457]
[null,null,null,null,null,null,null,null,458]
[null,null,null,null,null,null,null,null,459]
[null,null,null,null,null,null,null,null,460]
[null,null,null,null,null,null,null,null,461]
[null,null,null,null,null,null,null,null,462]
[null,null,null,null,null,null,null,null,463]
[null,null,null,null,null,null,null,null,464]
[null,null,null,null,null,null,null,null,465]
[null,null,null,null,null,null,null,null,466]
[null,null,null,null,null,null,null,null,467]
[null,null,null,null,null,null,null,null,468]
[null,null,null,null,null,null,null,null,469]
[null,null,null,null,null,null,null,null,470]
[null,null,null,null,null,null,null,null,471]
[null,null,null,null,null,null,null,null,472]
[null,null,null,null,null,null,null,null,473]
[null,null,null,null,null,null,null,null,474]
[null,null,null,null,null,null,null,null,475]
[null,null,null,null,null,null,null,null,476]
[null,null,null,null,null,null,null,null,477]
[null,null,null,null,null,null,null,null,478]
[null,null,null,null,null,null,null,null,479]
[null,null,null,null,null,null,null,null,480]
[null,null,null,null,null,null,null,null,481]
[null,null,null,null,null,null,null,null,482]
[null,null,null,null,null,null,null,null,483]
[null,null,null,null,null,null,null,null,484]
[null,null,null,null,null,null,null,null,485]
[null,null,null,null,null,null,null,null,486]
[null,null,null,null,null,null,null,null,487]
[null,null,null,null,null,null,null,null,488]
[null,null,null,null,null,null,null,null,489]
[null,null,null,null,null,null,null,null,490]
[null,null,null,null,null,null,null,null,491]
[null,null,null,null,null,null,null,null,492]
[null,null,null,null,null,null,null,null,493]
[null,null,null,null,null,null,null,null,494]
[null,null,null,null,null,null,null,null,495]
[null,null,null,null,null,null,null,null,496]
[null,null,null,null,null,null,null,null,497]
[null,null,null,null,null,null,null,null,498]
[null,null,null,null,null,null,null,null,499]
[null,null,null,null,null,null,null,null,500]
[null,null,null,null,null,null,null,null,501]
[null,null,null,null,null,null,null,null,502]
[null,null,null,null,null,null,null,null,503]
[null,null,null,null,null,null,null,null,504]
[null,null,null,null,null,null,null,null,505]
[null,null,null,null,null,null,null,null,506]
[null,null,null,null,null,null,null,null,507]
[null,null,null,null,null,null,null,null,508]
[null,null,null,null,null,null,null,null,509]
[null,null,null,null,null,null,null,null,510]
[null,null,null,null,null,null,null,null,511]
[null,null,null,null,null,null,null,null,512]
[null,null,null,null,null,null,null,null,513]
[null,null,null,null,null,null,null,null,514]
[null,null,null,null,null,null,null,null,515]
[null,null,null,null,null,null,null,null,516]
[null,null,null,null,null,null,null,null,517]
[null,null,null,null,null,null,null,null,518]
[null,null,null,null,null,null,null,null,519]
[null,null,null,null,null,null,null,null,520]
[null,null,null,null,null,null,null,null,521]
[null,null,null,null,null,null,null,null,522]
[null,null,null,null,null,null,null,null,523]
[null,null,null,null,null,null,null,null,524]
[null,null,null,null,null,null,null,null,525]
[null,null,null,null,null,null,null,null,526]
[null,null,null,null,null,null,null,null,527]
[null,null,null,null,null,null,null,null,528]
[null,null,null,null,null,null,null,null,529]
[null,null,null,null,null,null,null,null,530]
[null,null,null,null,null,null,null,null,531]
[null,null,null,null,null,null,null,null,532]
[null,null,null,null,null,null,null,null,533]
[null,null,null,null,null,null,null,null,534]
[null,null,null,null,null,null,null,null,535]
[null,null,null,null,null,null,null,null,536]
[null,null,null,null,null,null,null,null,537]
[null,null,null,null,null,null,null,null,538]
[null,null,null,null,null,null,null,null,539]
[null,null,null,null,null,null,null,null,540]
[null,null,null,null,null,null,null,null,541]
[null,null,null,null,null,null,null,null,542]
[null,null,null,null,null,null,null,null,543]
[null,null,null,null,null,null,null,null,544]
[null,null,null,null,null,null,null,null,545]
[null,null,null,null,null,null,null,null,546]
[null,null,null,null,null,null,null,null,547]
[null,null,null,null,null,null,null,null,548]
[null,null,null,null,null,null,null,null,549]
[null,null,null,null,null,null,null,null,550]
[null,null,null,null,null,null,null,null,551]
[null,null,null,null,null,null,null,null,552]
[null,null,null,null,null,null,null,null,553]
[null,null,null,null,null,null,null,null,554]
[null,null,null,null,null,null,null,null,555]
[null,null,null,null,null,null,null,null,556]
[null,null,null,null,null,null,null,null,557]
[null,null,null,null,null,null,null,null,558]
[null,null,null,null,null,null,null,null,559]
[null,null,null,null,null,null,null,null,560]
[null,null,null,null,null,null,null,null,561]
[null,null,null,null,null,null,null,null,562]
[null,null,null,null,null,null,null,null,563]
[null,null,null,null,null,null,null,null,564]
[null,null,null,null,null,null,null,null,565]
[null,null,null,null,null,null,null,null,566]
[null,null,null,null,null,null,null,null,567]
[null,null,null,null,null,null,null,null,568]
[null,null,null,null,null,null,null,null,569]
[null,null,null,null,null,null,null,null,570]
[null,null,null,null,null,null,null,null,571]
[null,null,null,null,null,null,null,null,572]
[null,null,null,null,null,null,null,null,573]
[null,null,null,null,null,null,null,null,574]
[null,null,null,null,null,null,null,null,575]
[null,null,null,null,null,null,null,null,576]
[null,null,null,null,null,null,null,null,577]
[null,null,null,null,null,null,null,null,578]
[null,null,null,null,null,null,null,null,579]
[null,null,null,null,null,null,null,null,580]
[null,null,null,null,null,null,null,null,581]
[null,null,null,null,null,null,null,null,582]
[null,null,null,null,null,null,null,null,583]
[null,null,null,null,null,null,null,null,584]
[null,null,null,null,null,null,null,null,585]
[null,null,null,null,null,null,null,null,586]
[null,null,null,null,null,null,null,null,587]
[null,null,null,null,null,null,null,null,588]
[null,null,null,null,null,null,null,null,589]
[null,null,null,null,null,null,null,null,590]
[null,null,null,null,null,null,null,null,591]
[null,null,null,null,null,null,null,null,592]
[null,null,null,null,null,null,null,null,593]
[null,null,null,null,null,null,null,null,594]
[null,null,null,null,null,null,null,null,595]
[null,null,null,null,null,null,null,null,596]
[null,null,null,null,null,null,null,null,597]
[null,null,null,null,null,null,null,null,598]
[null,null,null,null,null,null,null,null,599]
[null,null,null,null,null,null,null,null,600]
[null,null,null,null,null,null,null,null,601]
[null,null,null,null,null,null,null,null,602]
[null,null,null,null,null,null,null,null,603]
[null,null,null,null,null,null,null,null,604]
[null,null,null,null,null,null,null,null,605]
[null,null,null,null,null,null,null,null,606]
[null,null,null,null,null,null,null,null,607]
[null,null,null,null,null,null,null,null,608]
[null,null,null,null,null,null,null,null,609]
[null,null,null,null,null,null,null,null,610]
[null,null,null,null,null,null,null,null,611]
[null,null,null,null,null,null,null,null,612]
[null,null,null,null,null,null,null,null,613]
[null,null,null,null,null,null,null,null,614]
[null,null,null,null,null,null,null,null,615]
[null,null,null,null,null,null,null,null,616]
[null,null,null,null,null,null,null,null,617]
[null,null,null,null,null,null,null,null,618]
[null,null,null,null,null,null,null,null,619]
[null,null,null,null,null,null,null,null,620]
[null,null,null,null,null,null,null,null,621]
[null,null,null,null,null,null,null,null,622]
[null,null,null,null,null,null,null,null,623]
[null,null,null,null,null,null,null,null,624]
[null,null,null,null,null,null,null,null,625]
[null,null,null,null,null,null,null,null,626]
[null,null,null,null,null,null,null,null,627]
[null,null,null,null,null,null,null,null,628]
[null,null,null,null,null,null,null,null,629]
[null,null,null,null,null,null,null,null,630]
[null,null,null,null,null,null,null,null,631]
[null,null,null,null,null,null,null,null,632]
[null,null,null,null,null,null,null,null,633]
[null,null,null,null,null,null,null,null,634]
[null,null,null,null,null,null,null,null,635]
[null,null,null,null,null,null,null,null,636]
[null,null,null,null,null,null,null,null,637]
[null,null,null,null,null,null,null,null,638]
[null,null,null,null,null,null,null,null,639]
[null,null,null,null,null,null,null,null,640]
[null,null,null,null,null,null,null,null,641]
[null,null,null,null,null,null,null,null,642]
[null,null,null,null,null,null,null,null,643]
[null,null,null,null,null,null,null,null,644]
[null,null,null,null,null,null,null,null,645]
[null,null,null,null,null,null,null,null,646]
[null,null,null,null,null,null,null,null,647]
[null,null,null,null,null,null,null,null,648]
[null,null,null,null,null,null,null,null,649]
[null,null,null,null,null,null,null,null,650]
[null,null,null,null,null,null,null,null,651]
[null,null,null,null,null,null,null,null,652]
[null,null,null,null,null,null,null,null,653]
[null,null,null,null,null,null,null,null,654]
[null,null,null,null,null,null,null,null,655]
[null,null,null,null,null,null,null,null,656]
[null,null,null,null,null,null,null,null,657]
[null,null,null,null,null,null,null,null,658]
[null,null,null,null,null,null,null,null,659]
[null,null,null,null,null,null,null,null,660]
[null,null,null,null,null,null,null,null,661]
[null,null,null,null,null,null,null,null,662]
[null,null,null,null,null,null,null,null,663]
[null,null,null,null,null,null,null,null,664]
[null,null,null,null,null,null,null,null,665]
[null,null,null,null,null,null,null,null,666]
[null,null,null,null,null,null,null,null,667]
[null,null,null,null,null,null,null,null,668]
[null,null,null,null,null,null,null,null,669]
[null,null,null,null,null,null,null,null,670]
[null,null,null,null,null,null,null,null,671]
[null,null,null,null,null,null,null,null,672]
[null,null,null,null,null,null,null,null,673]
[null,null,null,null,null,null,null,null,674]
[null,null,null,null,null,null,null,null,675]
[null,null,null,null,null,null,null,null,676]
[null,null,null,null,null,null,null,null,677]
[null,null,null,null,null,null,null,null,678]
[null,null,null,null,null,null,null,null,679]
[null,null,null,null,null,null,null,null,680]
[null,null,null,null,null,null,null,null,681]
[null,null,null,null,null,null,null,null,682]
[null,null,null,null,null,null,null,null,683]
[null,null,null,null,null,null,null,null,684]
[null,null,null,null,null,null,null,null,685]
[null,null,null,null,null,null,null,null,686]
[null,null,null,null,null,null,null,null,687]
[null,null,null,null,null,null,null,null,688]
[null,null,null,null,null,null,null,null,689]
[null,null,null,null,null,null,null,null,690]
[null,null,null,null,null,null,null,null,691]
[null,null,null,null,null,null,null,null,692]
[null,null,null,null,null,null,null,null,693]
[null,null,null,null,null,null,null,null,694]
[null,null,null,null,null,null,null,null,695]
[null,null,null,null,null,null,null,null,696]
[null,null,null,null,null,null,null,null,697]
[null,null,null,null,null,null,null,null,698]
[null,null,null,null,null,null,null,null,699]
[null,null,null,null,null,null,null,null,700]
[null,null,null,null,null,null,null,null,701]
[null,null,null,null,null,null,null,null,702]
[null,null,null,null,null,null,null,null,703]
[null,null,null,null,null,null,null,null,704]
[null,null,null,null,null,null,null,null,705]
[null,null,null,null,null,null,null,null,706]
[null,null,null,null,null,null,null,null,707]
[null,null,null,null,null,null,null,null,708]
[null,null,null,null,null,null,null,null,709]
[null,null,null,null,null,null,null,null,710]
[null,null,null,null,null,null,null,null,711]
[null,null,null,null,null,null,null,null,712]
[null,null,null,null,null,null,null,null,713]
[null,null,null,null,null,null,null,null,714]
[null,null,null,null,null,null,null,null,715]
[null,null,null,null,null,null,null,null,716]
[null,null,null,null,null,null,null,null,717]
[null,null,null,null,null,null,null,null,718]
[null,null,null,null,null,null,null,null,719]
[null,null,null,null,null,null,null,null,720]
[null,null,null,null,null,null,null,null,721]
[null,null,null,null,null,null,null,null,722]
[null,null,null,null,null,null,null,null,723]
[null,null,null,null,null,null,null,null,724]
[null,null,null,null,null,null,null,null,725]
[null,null,null,null,null,null,null,null,726]
[null,null,null,null,null,null,null,null,727]
[null,null,null,null,null,null,null,null,728]
[null,null,null,null,null,null,null,null,729]
[null,null,null,null,null,null,null,null,730]
[null,null,null,null,null,null,null,null,731]
[null,null,null,null,null,null,null,null,732]
[null,null,null,null,null,null,null,null,733]
[null,null,null,null,null,null,null,null,734]
[null,null,null,null,null,null,null,null,735]
[null,null,null,null,null,null,null,null,736]
[null,null,null,null,null,null,null,null,737]
[null,null,null,null,null,null,null,null,738]
[null,null,null,null,null,null,null,null,739]
[null,null,null,null,null,null,null,null,740]
[null,null,null,null,null,null,null,null,741]
[null,null,null,null,null,null,null,null,742]
[null,null,null,null,null,null,null,null,743]
[null,null,null,null,null,null,null,null,744]
[null,null,null,null,null,null,null,null,745]
[null,null,null,null,null,null,null,null,746]
[null,null,null,null,null,null,null,null,747]
[null,null,null,null,null,null,null,null,748]
[null,null,null,null,null,null,null,null,749]
[null,null,null,null,null,null,null,null,750]
[null,null,null,null,null,null,null,null,751]
[null,null,null,null,null,null,null,null,752]
[null,null,null,null,null,null,null,null,753]
[null,null,null,null,null,null,null,null,754]
[null,null,null,null,null,null,null,null,755]
[null,null,null,null,null,null,null,null,756]
[null,null,null,null,null,null,null,null,757]
[null,null,null,null,null,null,null,null,758]
[null,null,null,null,null,null,null,null,759]
[null,null,null,null,null,null,null,null,760]
[null,null,null,null,null,null,null,null,761]
[null,null,null,null,null,null,null,null,762]
[null,null,null,null,null,null,null,null,763]
[null,null,null,null,null,null,null,null,764]
[null,null,null,null,null,null,null,null,765]
[null,null,null,null,null,null,null,null,766]
[null,null,null,null,null,null,null,null,767]
[null,null,null,null,null,null,null,null,768]
[null,null,null,null,null,null,null,null,769]
[null,null,null,null,null,null,null,null,770]
[null,null,null,null,null,null,null,null,771]
[null,null,null,null,null,null,null,null,772]
[null,null,null,null,null,null,null,null,773]
[null,null,null,null,null,null,null,null,774]
[null,null,null,null,null,null,null,null,775]
[null,null,null,null,null,null,null,null,776]
[null,null,null,null,null,null,null,null,777]
[null,null,null,null,null,null,null,null,778]
[null,null,null,null,null,null,null,null,779]
[null,null,null,null,null,null,null,null,780]
[null,null,null,null,null,null,null,null,781]
[null,null,null,null,null,null,null,null,782]
[null,null,null,null,null,null,null,null,783]
[null,null,null,null,null,null,null,null,784]
[null,null,null,null,null,null,null,null,785]
[null,null,null,null,null,null,null,null,786]
[null,null,null,null,null,null,null,null,787]
[null,null,null,null,null,null,null,null,788]
[null,null,null,null,null,null,null,null,789]
[null,null,null,null,null,null,null,null,790]
[null,null,null,null,null,null,null,null,791]
[null,null,null,null,null,null,null,null,792]
[null,null,null,null,null,null,null,null,793]
[null,null,null,null,null,null,null,null,794]
[null,null,null,null,null,null,null,null,795]
[null,null,null,null,null,null,null,null,796]
[null,null,null,null,null,null,null,null,797]
[null,null,null,null,null,null,null,null,798]
[null,null,null,null,null,null,null,null,799]
[null,null,null,null,null,null,null,null,800]
[null,null,null,null,null,null,null,null,801]
[null,null,null,null,null,null,null,null,802]
[null,null,null,null,null,null,null,null,803]
[null,null,null,null,null,null,null,null,804]
[null,null,null,null,null,null,null,null,805]
[null,null,null,null,null,null,null,null,806]
[null,null,null,null,null,null,null,null,807]
[null,null,null,null,null,null,null,null,808]
[null,null,null,null,null,null,null,null,809]
[null,null,null,null,null,null,null,null,810]
[null,null,null,null,null,null,null,null,811]
[null,null,null,null,null,null,null,null,812]
[null,null,null,null,null,null,null,null,813]
[null,null,null,null,null,null,null,null,814]
[null,null,null,null,null,null,null,null,815]
[null,null,null,null,null,null,null,null,816]
[null,null,null,null,null,null,null,null,817]
[null,null,null,null,null,null,null,null,818]
[null,null,null,null,null,null,null,null,819]
[null,null,null,null,null,null,null,null,820]
[null,null,null,null,null,null,null,null,821]
[null,null,null,null,null,null,null,null,822]
[null,null,null,null,null,null,null,null,823]
[null,null,null,null,null,null,null,null,824]
[null,null,null,null,null,null,null,null,825]
[null,null,null,null,null,null,null,null,826]
[null,null,null,null,null,null,null,null,827]
[null,null,null,null,null,null,null,null,828]
[null,null,null,null,null,null,null,null,829]
[null,null,null,null,null,null,null,null,830]
[null,null,null,null,null,null,null,null,831]
[null,null,null,null,null,null,null,null,832]
[null,null,null,null,null,null,null,null,833]
[null,null,null,null,null,null,null,null,834]
[null,null,null,null,null,null,null,null,835]
[null,null,null,null,null,null,null,null,836]
[null,null,null,null,null,null,null,null,837]
[null,null,null,null,null,null,null,null,838]
[null,null,null,null,null,null,null,null,839]
[null,null,null,null,null,null,null,null,840]
[null,null,null,null,null,null,null,null,841]
[null,null,null,null,null,null,null,null,842]
[null,null,null,null,null,null,null,null,843]
[null,null,null,null,null,null,null,null,844]
[null,null,null,null,null,null,null,null,845]
[null,null,null,null,null,null,null,null,846]
[null,null,null,null,null,null,null,null,847]
[null,null,null,null,null,null,null,null,848]
[null,null,null,null,null,null,null,null,849]
[null,null,null,null,null,null,null,null,850]
[null,null,null,null,null,null,null,null,851]
[null,null,null,null,null,null,null,null,852]
[null,null,null,null,null,null,null,null,853]
[null,null,null,null,null,null,null,null,854]
[null,null,null,null,null,null,null,null,855]
[null,null,null,null,null,null,null,null,856]
[null,null,null,null,null,null,null,null,857]
[null,null,null,null,null,null,null,null,858]
[null,null,null,null,null,null,null,null,859]
[null,null,null,null,null,null,null,null,860]
[null,null,null,null,null,null,null,null,861]
[null,null,null,null,null,null,null,null,862]
[null,null,null,null,null,null,null,null,863]
[null,null,null,null,null,null,null,null,864]
[null,null,null,null,null,null,null,null,865]
[null,null,null,null,null,null,null,null,866]
[null,null,null,null,null,null,null,null,867]
[null,null,null,null,null,null,null,null,868]
[null,null,null,null,null,null,null,null,869]
[null,null,null,null,null,null,null,null,870]
[null,null,null,null,null,null,null,null,871]
[null,null,null,null,null,null,null,null,872]
[null,null,null,null,null,null,null,null,873]
[null,null,null,null,null,null,null,null,874]
[null,null,null,null,null,null,null,null,875]
[null,null,null,null,null,null,null,null,876]
[null,null,null,null,null,null,null,null,877]
[null,null,null,null,null,null,null,null,878]
[null,null,null,null,null,null,null,null,879]
[null,null,null,null,null,null,null,null,880]
[null,null,null,null,null,null,null,null,881]
[null,null,null,null,null,null,null,null,882]
[null,null,null,null,null,null,null,null,883]
[null,null,null,null,null,null,null,null,884]
[null,null,null,null,null,null,null,null,885]
[null,null,null,null,null,null,null,null,886]
[null,null,null,null,null,null,null,null,887]
[null,null,null,null,null,null,null,null,888]
[null,null,null,null,null,null,null,null,889]
[null,null,null,null,null,null,null,null,890]
[null,null,null,null,null,null,null,null,891]
[null,null,null,null,null,null,null,null,892]
[null,null,null,null,null,null,null,null,893]
[null,null,null,null,null,null,null,null,894]
[null,null,null,null,null,null,null,null,895]
[null,null,null,null,null,null,null,null,896]
[null,null,null,null,null,null,null,null,897]
[null,null,null,null,null,null,null,null,898]
[null,null,null,null,null,null,null,null,899]
[null,null,null,null,null,null,null,null,900]
[null,null,null,null,null,null,null,null,901]
[null,null,null,null,null,null,null,null,902]
[null,null,null,null,null,null,null,null,903]
[null,null,null,null,null,null,null,null,904]
[null,null,null,null,null,null,null,null,905]
[null,null,null,null,null,null,null,null,906]
[null,null,null,null,null,null,null,null,907]
[null,null,null,null,null,null,null,null,908]
[null,null,null,null,null,null,null,null,909]
[null,null,null,null,null,null,null,null,910]
[null,null,null,null,null,null,null,null,911]
[null,null,null,null,null,null,null,null,912]
[null,null,null,null,null,null,null,null,913]
[null,null,null,null,null,null,null,null,914]
[null,null,null,null,null,null,null,null,915]
[null,null,null,null,null,null,null,null,916]
[null,null,null,null,null,null,null,null,917]
[null,null,null,null,null,null,null,null,918]
[null,null,null,null,null,null,null,null,919]
[null,null,null,null,null,null,null,null,920]
[null,null,null,null,null,null,null,null,921]
[null,null,null,null,null,null,null,null,922]
[null,null,null,null,null,null,null,null,923]
[null,null,null,null,null,null,null,null,924]
[null,null,null,null,null,null,null,null,925]
[null,null,null,null,null,null,null,null,926]
[null,null,null,null,null,null,null,null,927]
[null,null,null,null,null,null,null,null,928]
[null,null,null,null,null,null,null,null,929]
[null,null,null,null,null,null,null,null,930]
[null,null,null,null,null,null,null,null,931]
[null,null,null,null,null,null,null,null,932]
[null,null,null,null,null,null,null,null,933]
[null,null,null,null,null,null,null,null,934]
[null,null,null,null,null,null,null,null,935]
[null,null,null,null,null,null,null,null,936]
[null,null,null,null,null,null,null,null,937]
[null,null,null,null,null,null,null,null,938]
[null,null,null,null,null,null,null,null,939]
[null,null,null,null,null,null,null,null,940]
[null,null,null,null,null,null,null,null,941]
[null,null,null,null,null,null,null,null,942]
[null,null,null,null,null,null,null,null,943]
[null,null,null,null,null,null,null,null,944]
[null,null,null,null,null,null,null,null,945]
[null,null,null,null,null,null,null,null,946]
[null,null,null,null,null,null,null,null,947]
[null,null,null,null,null,null,null,null,948]
[null,null,null,null,null,null,null,null,949]
[null,null,null,null,null,null,null,null,950]
[null,null,null,null,null,null,null,null,951]
[null,null,null,null,null,null,null,null,952]
[null,null,null,null,null,null,null,null,953]
[null,null,null,null,null,null,null,null,954]
[null,null,null,null,null,null,null,null,955]
[null,null,null,null,null,null,null,null,956]
[null,null,null,null,null,null,null,null,957]
[null,null,null,null,null,null,null,null,958]
[null,null,null,null,null,null,null,null,959]
[null,null,null,null,null,null,null,null,960]
[null,null,null,null,null,null,null,null,961]
[null,null,null,null,null,null,null,null,962]
[null,null,null,null,null,null,null,null,963]
[null,null,null,null,null,null,null,null,964]
[null,null,null,null,null,null,null,null,965]
[null,null,null,null,null,null,null,null,966]
[null,null,null,null,null,null,null,null,967]
[null,null,null,null,null,null,null,null,968]
[null,null,null,null,null,null,null,null,969]
[null,null,null,null,null,null,null,null,970]
[null,null,null,null,null,null,null,null,971]
[null,null,null,null,null,null,null,null,972]
[null,null,null,null,null,null,null,null,973]
[null,null,null,null,null,null,null,null,974]
[null,null,null,null,null,null,null,null,975]
[null,null,null,null,null,null,null,null,976]
[null,null,null,null,null,null,null,null,977]
[null,null,null,null,null,null,null,null,978]
[null,null,null,null,null,null,null,null,979]
[null,null,null,null,null,null,null,null,980]
[null,null,null,null,null,null,null,null,981]
[null,null,null,null,null,null,null,null,982]
[null,null,null,null,null,null,null,null,983]
[null,null,null,null,null,null,null,null,984]
[null,null,null,null,null,null,null,null,985]
[null,null,null,null,null,null,null,null,986]
[null,null,null,null,null,null,null,null,987]
[null,null,null,null,null,null,null,null,988]
[null,null,null,null,null,null,null,null,989]
[null,null,null,null,null,null,null,null,990]
[null,null,null,null,null,null,null,null,991]
[null,null,null,null,null,null,null,null,992]
[null,null,null,null,null,null,null,null,993]
[null,null,null,null,null,null,null,null,994]
[null,null,null,null,null,null,null,null,995]
[null,null,null,null,null,null,null,null,996]
[null,null,null,null,null,null,null,null,997]
[null,null,null,null,null,null,null,null,998]
[null,null,null,null,null,null,null,null,999]
[null,null,null,null,null,null,null,null,1000]

{"sheet":"Parametric","index":3,"n_rows":58,"n_cols":5,"rows_kept":58,"cut":false,"hidden":false,"merged":[]}
["Parametric uncertainty analysis"]
[]
[]
[]
["Parametric CEA curve"]
["Rc","NB","seNB","z","pCE"]
[]
[0]
[1000]
[2000]
[3000]
[4000]
[5000]
[6000]
[7000]
[8000]
[9000]
[10000]
[11000]
[12000]
[13000]
[14000]
[15000]
[16000]
[17000]
[18000]
[19000]
[20000]
[21000]
[22000]
[23000]
[24000]
[25000]
[26000]
[27000]
[28000]
[29000]
[30000]
[31000]
[32000]
[33000]
[34000]
[35000]
[36000]
[37000]
[38000]
[39000]
[40000]
[41000]
[42000]
[43000]
[44000]
[45000]
[46000]
[47000]
[48000]
[49000]
[50000]